[Event "Stay Safe Play From Home 216"]
[Site "T#646701Emanuel Laske"]
[Date "2020.06.10"]
[Round "2"]
[White "Vilmos47"]
[Black "Tobo Rubirosa"]
[Result "1-0"]
[WhiteElo "1288"]
[BlackElo "1722"]
[Annotator "NA RC"]
[PlyCount "21"]
[EventDate "2020.06.10"]
[EventType "swiss (blitz)"]
[TimeControl "300"]

1. e4 {[%emt 0:00:03]} c5 {[%emt 0:00:01]} 2. Nc3 {[%emt 0:00:02]} d6 {[%emt 0:00:01]} 3. f4 {[%emt 0:00:04]} Nc6 {[%emt 0:00:01]} 4. Nf3 {[%emt 0:00:03]} e6 {[%emt 0:00:01]} 5. Bb5 {[%emt 0:00:27]} Bd7 {[%emt 0:00:05]} 6. O-O {[%emt 0:00:03]} g6 {[%emt 0:00:02]} 7. f5 {[%emt 0:00:09]} exf5 {[%emt 0:00:12]} 8. exf5 {[%emt 0:00:06]} Bxf5 {[%emt 0:00:01]} 9. Re1+ {[%emt 0:00:21]} Nge7 {[%emt 0:00:03]} 10. Nd5 {[%emt 0:00:02]} Be6 {[%emt 0:00:08]} 11. Nf6# {[%emt 0:00:03] (Lag: Av=1.08s, max=1.6s)} 1-0